[Event "Titled Tuesday Blitz February 07 Late 2023"]
[White "Antonova, Nadezhda"]
[Black "Suarez Uriel, Adrian"]
[WhiteFideId "14700182"]
[BlackFideId "22230874"]
[WhiteElo "1945"]
[BlackElo "2356"]
[Result "1-0"]
[Round "03"]
[TimeControl "180+2"]
[Date "2023.02.07"]
[WhiteClock "0:02:05"]
[BlackClock "0:02:19"]

1. Nf3 {[%clk 0:02:58]}  Nf6 {[%clk 0:02:54]} 2. b3 {[%clk 0:02:58]}  g6 {[%clk 0:02:53]} 3. Bb2 {[%clk 0:02:58]}  Bg7 {[%clk 0:02:53]} 4. g3 {[%clk 0:02:59]}  b6 {[%clk 0:02:53]} 5. Bg2 {[%clk 0:02:59]}  Bb7 {[%clk 0:02:54]} 6. O-O {[%clk 0:02:59]}  O-O {[%clk 0:02:54]} 7. c4 {[%clk 0:02:59]}  e6 {[%clk 0:02:54]} 8. e3 {[%clk 0:02:48]}  Qe7 {[%clk 0:02:50]} 9. Nc3 {[%clk 0:02:41]}  c5 {[%clk 0:02:49]} 10. d4 {[%clk 0:02:39]}  Na6 {[%clk 0:02:46]} 11. d5 {[%clk 0:02:33]}  exd5 {[%clk 0:02:44]} 12. Nxd5 {[%clk 0:02:33]}  Nxd5 {[%clk 0:02:41]} 13. Bxg7 {[%clk 0:02:33]}  Nxe3 {[%clk 0:02:39]} 14. Bxf8 {[%clk 0:02:32]}  Rxf8 {[%clk 0:02:25]} 15. fxe3 {[%clk 0:02:32]}  Qxe3+ {[%clk 0:02:26]} 16. Kh1 {[%clk 0:02:28]}  Nb4 {[%clk 0:02:23]} 17. Qd2 {[%clk 0:02:17]}  Qe6 {[%clk 0:02:22]} 18. Rae1 {[%clk 0:02:15]}  Qg4 {[%clk 0:02:20]} 19. Ne5 {[%clk 0:02:07]}  Bxg2+ {[%clk 0:02:19]} 20. Qxg2 {[%clk 0:02:06]}  Qh5 {[%clk 0:02:20]} 21. Nxd7 {[%clk 0:02:05]}  Rd8 {[%clk 0:02:19]} 22. Nf6+ {[%clk 0:02:05]} 1-0


[Site "https://www.chess.com"]

[Event "Titled Tuesday Blitz February 07 Late 2023"]
[White "Nefedov, Sergey"]
[Black "Olsson, William"]
[WhiteFideId "24113417"]
[BlackFideId "1741721"]
[WhiteElo "2300"]
[BlackElo "2355"]
[Result "1-0"]
[Round "03"]
[TimeControl "180+2"]
[Date "2023.02.07"]
[WhiteClock "0:00:51"]
[BlackClock "0:00:36"]

1. d4 {[%clk 0:03:00]}  d5 {[%clk 0:02:59]} 2. Nf3 {[%clk 0:03:00]}  Nf6 {[%clk 0:02:59]} 3. c4 {[%clk 0:03:00]}  e6 {[%clk 0:02:58]} 4. Nc3 {[%clk 0:03:00]}  c6 {[%clk 0:02:58]} 5. Bg5 {[%clk 0:03:00]}  h6 {[%clk 0:02:58]} 6. Bxf6 {[%clk 0:03:00]}  Qxf6 {[%clk 0:02:59]} 7. Qb3 {[%clk 0:03:00]}  dxc4 {[%clk 0:02:53]} 8. Qxc4 {[%clk 0:02:59]}  b5 {[%clk 0:02:53]} 9. Qd3 {[%clk 0:02:59]}  a6 {[%clk 0:02:51]} 10. e4 {[%clk 0:02:59]}  Bb7 {[%clk 0:02:50]} 11. e5 {[%clk 0:02:41]}  Qd8 {[%clk 0:02:49]} 12. Ne4 {[%clk 0:02:41]}  Nd7 {[%clk 0:02:50]} 13. Rc1 {[%clk 0:02:40]}  Bb4+ {[%clk 0:02:47]} 14. Nfd2 {[%clk 0:02:39]}  O-O {[%clk 0:02:28]} 15. a3 {[%clk 0:02:39]}  Be7 {[%clk 0:02:25]} 16. Be2 {[%clk 0:02:39]}  Qb6 {[%clk 0:02:23]} 17. Qe3 {[%clk 0:02:21]}  Rfd8 {[%clk 0:02:20]} 18. O-O {[%clk 0:02:20]}  Rac8 {[%clk 0:02:12]} 19. b4 {[%clk 0:02:17]}  a5 {[%clk 0:02:09]} 20. Nc5 {[%clk 0:02:17]}  axb4 {[%clk 0:02:04]} 21. axb4 {[%clk 0:02:15]}  Qc7 {[%clk 0:02:00]} 22. Nde4 {[%clk 0:02:13]}  Nb6 {[%clk 0:01:59]} 23. Rb1 {[%clk 0:01:43]}  Nd5 {[%clk 0:01:55]} 24. Qg3 {[%clk 0:01:43]}  Ra8 {[%clk 0:01:44]} 25. f4 {[%clk 0:01:42]}  Ra2 {[%clk 0:01:37]} 26. Bh5 {[%clk 0:01:36]}  Bxc5 {[%clk 0:01:14]} 27. dxc5 {[%clk 0:01:27]}  Ne7 {[%clk 0:01:00]} 28. Nd6 {[%clk 0:01:10]}  Nf5 {[%clk 0:00:51]} 29. Bxf7+ {[%clk 0:01:00]}  Kf8 {[%clk 0:00:46]} 30. Nxf5 {[%clk 0:00:53]}  Qxf7 {[%clk 0:00:43]} 31. Nd6 {[%clk 0:00:52]}  Qe7 {[%clk 0:00:38]} 32. f5 {[%clk 0:00:51]}  Bc8 {[%clk 0:00:36]} 1-0


[Site "https://www.chess.com"]

[Event "Titled Tuesday Blitz February 07 Late 2023"]
[White "EdmundPlayer"]
[Black "Rostomyan, Mikayel"]
[BlackFideId "13313754"]
[WhiteElo "2275"]
[BlackElo "2222"]
[Result "0-1"]
[Round "03"]
[TimeControl "180+2"]
[Date "2023.02.07"]
[WhiteClock "0:00:01"]
[BlackClock "0:01:04"]

1. e4 {[%clk 0:03:00]}  a6 {[%clk 0:02:58]} 2. d4 {[%clk 0:02:58]}  b5 {[%clk 0:02:56]} 3. a4 {[%clk 0:02:55]}  b4 {[%clk 0:02:56]} 4. c3 {[%clk 0:02:53]}  e6 {[%clk 0:02:55]} 5. cxb4 {[%clk 0:02:52]}  Bxb4+ {[%clk 0:02:54]} 6. Bd2 {[%clk 0:02:49]}  Qe7 {[%clk 0:02:54]} 7. Nc3 {[%clk 0:02:48]}  Bb7 {[%clk 0:02:52]} 8. Bd3 {[%clk 0:02:46]}  Nf6 {[%clk 0:02:51]} 9. Nge2 {[%clk 0:02:44]}  d5 {[%clk 0:02:43]} 10. f3 {[%clk 0:02:24]}  c5 {[%clk 0:02:36]} 11. e5 {[%clk 0:02:09]}  Nfd7 {[%clk 0:02:33]} 12. O-O {[%clk 0:02:05]}  Nc6 {[%clk 0:02:30]} 13. f4 {[%clk 0:01:50]}  cxd4 {[%clk 0:02:27]} 14. Na2 {[%clk 0:01:45]}  Bxd2 {[%clk 0:02:24]} 15. Qxd2 {[%clk 0:01:46]}  Nc5 {[%clk 0:02:24]} 16. Rae1 {[%clk 0:01:16]}  Nxa4 {[%clk 0:01:52]} 17. Bb1 {[%clk 0:01:02]}  Qc5 {[%clk 0:01:44]} 18. Rc1 {[%clk 0:00:57]}  Qb6 {[%clk 0:01:42]} 19. Kh1 {[%clk 0:00:46]}  Qxb2 {[%clk 0:01:38]} 20. Qd3 {[%clk 0:00:32]}  Qb5 {[%clk 0:01:32]} 21. Qa3 {[%clk 0:00:19]}  Qxe2 {[%clk 0:01:17]} 22. Rfe1 {[%clk 0:00:16]}  Qb5 {[%clk 0:01:15]} 23. Bd3 {[%clk 0:00:15]}  Qb2 {[%clk 0:01:13]} 24. Qxa4 {[%clk 0:00:14]}  O-O {[%clk 0:01:12]} 25. Rc2 {[%clk 0:00:13]}  Qb6 {[%clk 0:01:09]} 26. Rd2 {[%clk 0:00:10]}  Qa5 {[%clk 0:01:06]} 27. Qxa5 {[%clk 0:00:07]}  Nxa5 {[%clk 0:01:07]} 28. Rb1 {[%clk 0:00:06]}  Bc6 {[%clk 0:01:06]} 29. Rdb2 {[%clk 0:00:03]}  Nc4 {[%clk 0:01:03]} 30. Rc2 {[%clk 0:00:01]}  Bb5 {[%clk 0:01:04]} 0-1


[Site "https://www.chess.com"]

[Event "Titled Tuesday Blitz February 07 Late 2023"]
[White "Yang, Qindong"]
[Black "Osmonbekov, Talaibek"]
[WhiteFideId "8603758"]
[BlackFideId "2017253"]
[WhiteElo "2127"]
[BlackElo "2137"]
[Result "1/2-1/2"]
[Round "03"]
[TimeControl "180+2"]
[Date "2023.02.07"]
[WhiteClock "0:00:07"]
[BlackClock "0:00:05"]

1. d4 {[%clk 0:03:00]}  e6 {[%clk 0:02:57]} 2. c4 {[%clk 0:03:00]}  f5 {[%clk 0:02:57]} 3. Nc3 {[%clk 0:02:58]}  Nf6 {[%clk 0:02:58]} 4. Qc2 {[%clk 0:02:53]}  Bb4 {[%clk 0:02:58]} 5. e3 {[%clk 0:02:50]}  O-O {[%clk 0:02:57]} 6. Bd3 {[%clk 0:02:51]}  b6 {[%clk 0:02:56]} 7. Ne2 {[%clk 0:02:50]}  Bb7 {[%clk 0:02:56]} 8. O-O {[%clk 0:02:51]}  a5 {[%clk 0:02:47]} 9. e4 {[%clk 0:02:36]}  fxe4 {[%clk 0:02:20]} 10. Nxe4 {[%clk 0:02:35]}  Nxe4 {[%clk 0:02:19]} 11. Bxe4 {[%clk 0:02:36]}  Bxe4 {[%clk 0:02:19]} 12. Qxe4 {[%clk 0:02:37]}  Nc6 {[%clk 0:02:18]} 13. d5 {[%clk 0:02:31]}  exd5 {[%clk 0:02:16]} 14. cxd5 {[%clk 0:02:32]}  Ne7 {[%clk 0:02:16]} 15. Bg5 {[%clk 0:02:14]}  h6 {[%clk 0:02:12]} 16. Bh4 {[%clk 0:02:12]}  g5 {[%clk 0:02:11]} 17. Bg3 {[%clk 0:02:12]}  Nf5 {[%clk 0:02:11]} 18. a3 {[%clk 0:02:04]}  Bc5 {[%clk 0:02:07]} 19. Rac1 {[%clk 0:01:48]}  Qf6 {[%clk 0:01:46]} 20. Rc2 {[%clk 0:01:39]}  Rae8 {[%clk 0:01:46]} 21. Qc4 {[%clk 0:01:38]}  Nd6 {[%clk 0:01:24]} 22. Qg4 {[%clk 0:01:30]}  Re4 {[%clk 0:01:19]} 23. Qxd7 {[%clk 0:01:29]}  Rfe8 {[%clk 0:01:09]} 24. Nc3 {[%clk 0:01:22]}  Re1 {[%clk 0:01:08]} 25. Rc1 {[%clk 0:01:20]}  Rxf1+ {[%clk 0:01:02]} 26. Rxf1 {[%clk 0:01:17]}  Re7 {[%clk 0:01:02]} 27. Qd8+ {[%clk 0:01:14]}  Kg7 {[%clk 0:01:02]} 28. h3 {[%clk 0:00:43]}  h5 {[%clk 0:01:02]} 29. Kh1 {[%clk 0:00:24]}  Nf5 {[%clk 0:00:57]} 30. Bxc7 {[%clk 0:00:22]}  g4 {[%clk 0:00:50]} 31. d6 {[%clk 0:00:19]}  Rf7 {[%clk 0:00:44]} 32. Qxf6+ {[%clk 0:00:19]}  Kxf6 {[%clk 0:00:40]} 33. Ne4+ {[%clk 0:00:18]}  Kg6 {[%clk 0:00:34]} 34. Nxc5 {[%clk 0:00:15]}  bxc5 {[%clk 0:00:35]} 35. Rd1 {[%clk 0:00:14]}  Nd4 {[%clk 0:00:30]} 36. hxg4 {[%clk 0:00:13]}  hxg4 {[%clk 0:00:30]} 37. Kg1 {[%clk 0:00:13]}  g3 {[%clk 0:00:24]} 38. Rd2 {[%clk 0:00:11]}  Rd7 {[%clk 0:00:11]} 39. fxg3 {[%clk 0:00:11]}  Nb5 {[%clk 0:00:11]} 40. Rd5 {[%clk 0:00:09]}  Nxc7 {[%clk 0:00:10]} 41. dxc7 {[%clk 0:00:08]}  Rxc7 {[%clk 0:00:11]} 42. Kf2 {[%clk 0:00:07]}  a4 {[%clk 0:00:11]} 43. Ke3 {[%clk 0:00:07]}  c4 {[%clk 0:00:11]} 44. Kd4 {[%clk 0:00:07]}  Rb7 {[%clk 0:00:10]} 45. Kxc4 {[%clk 0:00:06]}  Rxb2 {[%clk 0:00:10]} 46. Rd3 {[%clk 0:00:06]}  Kg5 {[%clk 0:00:08]} 47. Kc5 {[%clk 0:00:05]}  Kg4 {[%clk 0:00:08]} 48. Rc3 {[%clk 0:00:05]}  Rb3 {[%clk 0:00:06]} 49. Rc4+ {[%clk 0:00:05]}  Kxg3 {[%clk 0:00:06]} 50. Rxa4 {[%clk 0:00:06]}  Kxg2 {[%clk 0:00:06]} 51. Ra7 {[%clk 0:00:04]}  Kf3 {[%clk 0:00:06]} 52. Kc4 {[%clk 0:00:04]}  Rb1 {[%clk 0:00:05]} 53. a4 {[%clk 0:00:05]}  Ke4 {[%clk 0:00:05]} 54. a5 {[%clk 0:00:05]}  Rc1+ {[%clk 0:00:05]} 55. Kb4 {[%clk 0:00:06]}  Rb1+ {[%clk 0:00:06]} 56. Kc5 {[%clk 0:00:05]}  Rc1+ {[%clk 0:00:05]} 57. Kb5 {[%clk 0:00:06]}  Rb1+ {[%clk 0:00:06]} 58. Kc4 {[%clk 0:00:06]}  Rc1+ {[%clk 0:00:05]} 59. Kb5 {[%clk 0:00:07]}  Rb1+ {[%clk 0:00:05]} 60. Ka6 {[%clk 0:00:07]}  Kd5 {[%clk 0:00:06]} 61. Rc7 {[%clk 0:00:06]}  Kd6 {[%clk 0:00:05]} 62. Rc2 {[%clk 0:00:07]}  Rb3 {[%clk 0:00:05]} 63. Ka7 {[%clk 0:00:07]}  Rb1 {[%clk 0:00:05]} 64. a6 {[%clk 0:00:08]}  Kd7 {[%clk 0:00:05]} 65. Ka8 {[%clk 0:00:08]}  Rb3 {[%clk 0:00:05]} 66. Ka7 {[%clk 0:00:07]}  Rb1 {[%clk 0:00:05]} 67. Ka8 {[%clk 0:00:08]}  Rb3 {[%clk 0:00:05]} 68. Rc4 {[%clk 0:00:08]}  Rb1 {[%clk 0:00:05]} 69. Rc5 {[%clk 0:00:08]}  Rb3 {[%clk 0:00:05]} 70. Ka7 {[%clk 0:00:08]}  Rb1 {[%clk 0:00:05]} 71. Ka8 {[%clk 0:00:07]}  Rb3 {[%clk 0:00:05]} 72. Ka7 {[%clk 0:00:08]}  Rb1 {[%clk 0:00:05]} 73. Ka8 {[%clk 0:00:07]} 1/2-1/2


[Site "https://www.chess.com"]

[Event "Titled Tuesday Blitz February 07 Late 2023"]
[White "Pniaczek, Marek"]
[Black "Toncheva, Nadya"]
[WhiteFideId "21800421"]
[BlackFideId "2924056"]
[WhiteElo "2228"]
[BlackElo "2295"]
[Result "0-1"]
[Round "03"]
[TimeControl "180+2"]
[Date "2023.02.07"]
[WhiteClock "0:01:31"]
[BlackClock "0:02:20"]

1. e4 {[%clk 0:03:00]}  c5 {[%clk 0:03:00]} 2. Nf3 {[%clk 0:03:00]}  Nc6 {[%clk 0:03:00]} 3. Bb5 {[%clk 0:02:58]}  e6 {[%clk 0:03:00]} 4. O-O {[%clk 0:02:53]}  Nge7 {[%clk 0:02:59]} 5. Re1 {[%clk 0:02:53]}  a6 {[%clk 0:02:59]} 6. Bf1 {[%clk 0:02:53]}  d5 {[%clk 0:02:59]} 7. exd5 {[%clk 0:02:42]}  Nxd5 {[%clk 0:03:00]} 8. Nc3 {[%clk 0:02:42]}  Nxc3 {[%clk 0:03:00]} 9. bxc3 {[%clk 0:02:41]}  Be7 {[%clk 0:03:00]} 10. d4 {[%clk 0:02:40]}  O-O {[%clk 0:02:59]} 11. Bf4 {[%clk 0:02:38]}  Bf6 {[%clk 0:02:52]} 12. Be3 {[%clk 0:02:25]}  Qc7 {[%clk 0:02:46]} 13. Bd3 {[%clk 0:02:21]}  Rd8 {[%clk 0:02:46]} 14. Qe2 {[%clk 0:02:13]}  b5 {[%clk 0:02:41]} 15. Be4 {[%clk 0:02:03]}  Bb7 {[%clk 0:02:39]} 16. Rad1 {[%clk 0:01:58]}  Ne7 {[%clk 0:02:28]} 17. Bxb7 {[%clk 0:01:48]}  Qxb7 {[%clk 0:02:29]} 18. dxc5 {[%clk 0:01:47]}  Bxc3 {[%clk 0:02:26]} 19. Rxd8+ {[%clk 0:01:47]}  Rxd8 {[%clk 0:02:25]} 20. Rd1 {[%clk 0:01:47]}  Nd5 {[%clk 0:02:24]} 21. Bd4 {[%clk 0:01:37]}  Bxd4 {[%clk 0:02:22]} 22. Nxd4 {[%clk 0:01:31]}  Nc3 {[%clk 0:02:20]} 0-1


[Site "https://www.chess.com"]

[Event "Titled Tuesday Blitz February 07 Late 2023"]
[White "Gardezi, Arsal"]
[Black "Sonnenschein, Philipp"]
[WhiteFideId "30949521"]
[BlackFideId "16250877"]
[WhiteElo "2093"]
[BlackElo "2224"]
[Result "1/2-1/2"]
[Round "03"]
[TimeControl "180+2"]
[Date "2023.02.07"]
[WhiteClock "0:01:00"]
[BlackClock "0:01:15"]

1. Nf3 {[%clk 0:02:57]}  g6 {[%clk 0:03:00]} 2. g3 {[%clk 0:02:57]}  Bg7 {[%clk 0:03:00]} 3. Bg2 {[%clk 0:02:58]}  e5 {[%clk 0:03:01]} 4. O-O {[%clk 0:02:59]}  d5 {[%clk 0:03:01]} 5. d3 {[%clk 0:03:00]}  c5 {[%clk 0:03:01]} 6. Nbd2 {[%clk 0:02:58]}  Nc6 {[%clk 0:03:01]} 7. e4 {[%clk 0:02:58]}  d4 {[%clk 0:03:01]} 8. Re1 {[%clk 0:02:56]}  Nge7 {[%clk 0:02:59]} 9. a4 {[%clk 0:02:52]}  O-O {[%clk 0:02:58]} 10. Nc4 {[%clk 0:02:52]}  Qc7 {[%clk 0:02:58]} 11. c3 {[%clk 0:02:51]}  h6 {[%clk 0:02:53]} 12. Bd2 {[%clk 0:02:50]}  Be6 {[%clk 0:02:53]} 13. Na3 {[%clk 0:02:48]}  Rfd8 {[%clk 0:02:51]} 14. Qc2 {[%clk 0:02:39]}  Rac8 {[%clk 0:02:45]} 15. Rac1 {[%clk 0:02:38]}  Qb8 {[%clk 0:02:41]} 16. Qb1 {[%clk 0:02:34]}  a6 {[%clk 0:02:41]} 17. b4 {[%clk 0:02:30]}  dxc3 {[%clk 0:02:40]} 18. Bxc3 {[%clk 0:02:30]}  cxb4 {[%clk 0:02:38]} 19. Bxb4 {[%clk 0:02:30]}  Nxb4 {[%clk 0:02:37]} 20. Qxb4 {[%clk 0:02:31]}  Nc6 {[%clk 0:02:33]} 21. Qb1 {[%clk 0:02:27]}  Qd6 {[%clk 0:02:25]} 22. Qxb7 {[%clk 0:02:19]}  Rc7 {[%clk 0:02:11]} 23. Qxa6 {[%clk 0:02:19]}  Qxa3 {[%clk 0:02:03]} 24. Rxc6 {[%clk 0:02:17]}  Rxc6 {[%clk 0:02:02]} 25. Qxc6 {[%clk 0:02:18]}  Qxd3 {[%clk 0:02:00]} 26. a5 {[%clk 0:02:08]}  Bg4 {[%clk 0:02:00]} 27. Qc7 {[%clk 0:01:31]}  Re8 {[%clk 0:01:15]} 28. Re3 {[%clk 0:01:10]}  Qd1+ {[%clk 0:01:15]} 29. Re1 {[%clk 0:01:10]}  Qd3 {[%clk 0:01:15]} 30. Re3 {[%clk 0:01:00]}  Qd1+ {[%clk 0:01:15]} 31. Re1 {[%clk 0:01:00]}  Qd3 {[%clk 0:01:15]} 1/2-1/2


[Site "https://www.chess.com"]

[Event "Titled Tuesday Blitz February 07 Late 2023"]
[White "Krishnan, Varun"]
[Black "Toktomushev, Teimur"]
[WhiteFideId "5054508"]
[BlackFideId "14176726"]
[WhiteElo "2341"]
[BlackElo "2239"]
[Result "0-1"]
[Round "03"]
[TimeControl "180+2"]
[Date "2023.02.07"]
[WhiteClock "0:00:02"]
[BlackClock "0:00:02"]

1. e4 {[%clk 0:03:00]}  c5 {[%clk 0:02:59]} 2. Nf3 {[%clk 0:03:00]}  e6 {[%clk 0:03:00]} 3. d4 {[%clk 0:03:00]}  cxd4 {[%clk 0:03:01]} 4. Nxd4 {[%clk 0:03:01]}  a6 {[%clk 0:03:01]} 5. Bd3 {[%clk 0:02:57]}  Bc5 {[%clk 0:02:59]} 6. Nb3 {[%clk 0:02:57]}  Ba7 {[%clk 0:02:59]} 7. Qg4 {[%clk 0:02:55]}  Nf6 {[%clk 0:02:56]} 8. Qe2 {[%clk 0:02:51]}  Nc6 {[%clk 0:02:51]} 9. Nc3 {[%clk 0:02:50]}  O-O {[%clk 0:02:49]} 10. e5 {[%clk 0:02:45]}  Ne8 {[%clk 0:02:47]} 11. Bf4 {[%clk 0:02:41]}  f6 {[%clk 0:02:31]} 12. exf6 {[%clk 0:02:20]}  Nxf6 {[%clk 0:02:25]} 13. O-O-O {[%clk 0:02:15]}  d5 {[%clk 0:02:10]} 14. Bg5 {[%clk 0:02:01]}  Qc7 {[%clk 0:01:49]} 15. Kb1 {[%clk 0:01:41]}  Bd7 {[%clk 0:01:48]} 16. h4 {[%clk 0:01:41]}  b5 {[%clk 0:01:27]} 17. Rh3 {[%clk 0:01:35]}  b4 {[%clk 0:01:04]} 18. Na4 {[%clk 0:01:31]}  Nd4 {[%clk 0:00:47]} 19. Nxd4 {[%clk 0:01:22]}  Bxd4 {[%clk 0:00:48]} 20. Rg3 {[%clk 0:00:51]}  Bxa4 {[%clk 0:00:37]} 21. Bh6 {[%clk 0:00:50]}  Rf7 {[%clk 0:00:16]} 22. Qxe6 {[%clk 0:00:47]}  Kh8 {[%clk 0:00:16]} 23. Bf4 {[%clk 0:00:40]}  Qd7 {[%clk 0:00:06]} 24. Qe2 {[%clk 0:00:35]}  Re8 {[%clk 0:00:06]} 25. Qf3 {[%clk 0:00:31]}  Ne4 {[%clk 0:00:04]} 26. Bxe4 {[%clk 0:00:08]}  dxe4 {[%clk 0:00:05]} 27. Qh5 {[%clk 0:00:04]}  Rxf4 {[%clk 0:00:04]} 28. Re3 {[%clk 0:00:03]}  Rxf2 {[%clk 0:00:02]} 29. Rg3 {[%clk 0:00:02]}  Rd2 {[%clk 0:00:02]} 0-1


[Site "https://www.chess.com"]

[Event "Titled Tuesday Blitz February 07 Late 2023"]
[White "Tinmaz, Kerem"]
[Black "Slade, Theodore"]
[WhiteFideId "44559151"]
[BlackFideId "426547"]
[WhiteElo "2177"]
[BlackElo "1995"]
[Result "1-0"]
[Round "03"]
[TimeControl "180+2"]
[Date "2023.02.07"]
[WhiteClock "0:00:45"]
[BlackClock "0:00:20"]

1. e4 {[%clk 0:03:00]}  e5 {[%clk 0:03:00]} 2. Nf3 {[%clk 0:03:00]}  Nc6 {[%clk 0:03:01]} 3. Bb5 {[%clk 0:02:59]}  Nf6 {[%clk 0:03:01]} 4. O-O {[%clk 0:02:57]}  Nxe4 {[%clk 0:03:02]} 5. Re1 {[%clk 0:02:58]}  Nd6 {[%clk 0:03:02]} 6. Nxe5 {[%clk 0:02:58]}  Be7 {[%clk 0:03:03]} 7. Bf1 {[%clk 0:02:57]}  Nxe5 {[%clk 0:03:03]} 8. Rxe5 {[%clk 0:02:58]}  O-O {[%clk 0:03:03]} 9. d4 {[%clk 0:02:59]}  Bf6 {[%clk 0:03:04]} 10. Re1 {[%clk 0:02:59]}  Re8 {[%clk 0:03:05]} 11. Rxe8+ {[%clk 0:02:58]}  Nxe8 {[%clk 0:03:05]} 12. c3 {[%clk 0:02:58]}  d5 {[%clk 0:03:06]} 13. Nd2 {[%clk 0:02:57]}  Bf5 {[%clk 0:03:05]} 14. Nf3 {[%clk 0:02:57]}  Nd6 {[%clk 0:02:58]} 15. Bf4 {[%clk 0:02:56]}  c6 {[%clk 0:02:57]} 16. Bd3 {[%clk 0:02:37]}  Bxd3 {[%clk 0:02:55]} 17. Qxd3 {[%clk 0:02:38]}  Ne4 {[%clk 0:02:48]} 18. Nd2 {[%clk 0:02:33]}  Nxd2 {[%clk 0:02:46]} 19. Qxd2 {[%clk 0:02:32]}  Qd7 {[%clk 0:02:45]} 20. Re1 {[%clk 0:02:31]}  Re8 {[%clk 0:02:45]} 21. Re3 {[%clk 0:02:28]}  h6 {[%clk 0:02:24]} 22. Qe2 {[%clk 0:02:21]}  Rxe3 {[%clk 0:02:24]} 23. Qxe3 {[%clk 0:02:22]}  h5 {[%clk 0:02:19]} 24. h3 {[%clk 0:02:21]}  g6 {[%clk 0:02:19]} 25. Be5 {[%clk 0:02:19]}  Bxe5 {[%clk 0:02:14]} 26. Qxe5 {[%clk 0:02:20]}  a6 {[%clk 0:02:01]} 27. a4 {[%clk 0:02:15]}  Qd8 {[%clk 0:02:00]} 28. b4 {[%clk 0:02:13]}  Kh7 {[%clk 0:01:53]} 29. f4 {[%clk 0:01:55]}  Qd7 {[%clk 0:01:52]} 30. Kh2 {[%clk 0:01:52]}  Qd8 {[%clk 0:01:51]} 31. f5 {[%clk 0:01:50]}  Qd7 {[%clk 0:01:29]} 32. f6 {[%clk 0:01:48]}  Qe6 {[%clk 0:01:25]} 33. Qxe6 {[%clk 0:01:30]}  fxe6 {[%clk 0:01:25]} 34. Kg3 {[%clk 0:01:31]}  g5 {[%clk 0:01:12]} 35. h4 {[%clk 0:01:31]}  g4 {[%clk 0:01:03]} 36. Kf4 {[%clk 0:01:31]}  Kg6 {[%clk 0:01:03]} 37. f7 {[%clk 0:00:55]}  Kxf7 {[%clk 0:01:02]} 38. Kg5 {[%clk 0:00:56]}  b6 {[%clk 0:00:49]} 39. Kxh5 {[%clk 0:00:51]}  c5 {[%clk 0:00:24]} 40. bxc5 {[%clk 0:00:48]}  bxc5 {[%clk 0:00:25]} 41. Kxg4 {[%clk 0:00:47]}  cxd4 {[%clk 0:00:19]} 42. cxd4 {[%clk 0:00:48]}  Kf6 {[%clk 0:00:20]} 43. Kf4 {[%clk 0:00:45]} 1-0


[Site "https://www.chess.com"]

[Event "Titled Tuesday Blitz February 07 Late 2023"]
[White "Stolz, Mike"]
[Black "Marczuk, Dominik"]
[WhiteFideId "4617134"]
[BlackFideId "1111264"]
[WhiteElo "2330"]
[BlackElo "2253"]
[Result "1/2-1/2"]
[Round "03"]
[TimeControl "180+2"]
[Date "2023.02.07"]
[WhiteClock "0:00:18"]
[BlackClock "0:00:04"]

1. e4 {[%clk 0:02:59]}  c5 {[%clk 0:03:00]} 2. Nf3 {[%clk 0:02:59]}  d6 {[%clk 0:03:00]} 3. Bb5+ {[%clk 0:02:58]}  Bd7 {[%clk 0:03:00]} 4. Bxd7+ {[%clk 0:02:57]}  Nxd7 {[%clk 0:03:01]} 5. Kf1 {[%clk 0:02:58]}  Ngf6 {[%clk 0:03:02]} 6. d3 {[%clk 0:02:57]}  g6 {[%clk 0:02:59]} 7. Nc3 {[%clk 0:02:57]}  Bg7 {[%clk 0:02:59]} 8. g3 {[%clk 0:02:56]}  O-O {[%clk 0:03:00]} 9. Kg2 {[%clk 0:02:56]}  Rb8 {[%clk 0:02:58]} 10. h3 {[%clk 0:02:57]}  b5 {[%clk 0:02:58]} 11. Be3 {[%clk 0:02:54]}  b4 {[%clk 0:02:58]} 12. Ne2 {[%clk 0:02:54]}  Qc7 {[%clk 0:02:51]} 13. Qd2 {[%clk 0:02:48]}  d5 {[%clk 0:02:42]} 14. exd5 {[%clk 0:02:43]}  Nxd5 {[%clk 0:02:41]} 15. Bh6 {[%clk 0:02:44]}  Bxb2 {[%clk 0:02:00]} 16. Bxf8 {[%clk 0:02:32]}  Bxa1 {[%clk 0:02:00]} 17. Bxe7 {[%clk 0:02:23]}  Bg7 {[%clk 0:01:57]} 18. Bg5 {[%clk 0:02:19]}  Re8 {[%clk 0:01:50]} 19. Nf4 {[%clk 0:02:08]}  N5f6 {[%clk 0:01:36]} 20. Re1 {[%clk 0:01:55]}  Rxe1 {[%clk 0:01:32]} 21. Qxe1 {[%clk 0:01:55]}  h6 {[%clk 0:01:28]} 22. Bxf6 {[%clk 0:01:33]}  Nxf6 {[%clk 0:01:29]} 23. Qe5 {[%clk 0:01:27]}  Qc6 {[%clk 0:01:25]} 24. Qb8+ {[%clk 0:01:23]}  Kh7 {[%clk 0:01:24]} 25. Qxa7 {[%clk 0:01:19]}  Nd7 {[%clk 0:01:20]} 26. Ne2 {[%clk 0:01:03]}  g5 {[%clk 0:01:07]} 27. g4 {[%clk 0:00:50]}  Qd5 {[%clk 0:00:45]} 28. Qa6 {[%clk 0:00:41]}  Ne5 {[%clk 0:00:38]} 29. Ng1 {[%clk 0:00:41]}  Ng6 {[%clk 0:00:38]} 30. Qc4 {[%clk 0:00:39]}  Nh4+ {[%clk 0:00:37]} 31. Kf1 {[%clk 0:00:28]}  Qd6 {[%clk 0:00:06]} 32. Nxh4 {[%clk 0:00:27]}  gxh4 {[%clk 0:00:06]} 33. Qe4+ {[%clk 0:00:27]}  Kg8 {[%clk 0:00:07]} 34. Qe8+ {[%clk 0:00:27]}  Kh7 {[%clk 0:00:06]} 35. Qe4+ {[%clk 0:00:27]}  Kg8 {[%clk 0:00:07]} 36. Ne2 {[%clk 0:00:26]}  Bf6 {[%clk 0:00:04]} 37. Qe8+ {[%clk 0:00:25]}  Kg7 {[%clk 0:00:04]} 38. Qe4 {[%clk 0:00:24]}  Qa6 {[%clk 0:00:03]} 39. Qc4 {[%clk 0:00:22]}  Qc6 {[%clk 0:00:03]} 40. Qe4 {[%clk 0:00:22]}  Qd6 {[%clk 0:00:03]} 41. f4 {[%clk 0:00:21]}  Qa6 {[%clk 0:00:02]} 42. Qc4 {[%clk 0:00:20]}  Qc6 {[%clk 0:00:03]} 43. Qe4 {[%clk 0:00:19]}  Qa6 {[%clk 0:00:03]} 44. Qc4 {[%clk 0:00:19]}  Qc6 {[%clk 0:00:04]} 45. Qe4 {[%clk 0:00:18]}  Qa6 {[%clk 0:00:04]} 1/2-1/2


[Site "https://www.chess.com"]